bitfinex/quotes_BTCUSD_20240821
["timestamp","ask_amount","ask_price","bid_price","bid_amount"]
[1724265192691,0.59045059,60652.0,60651.0,2.64199998]
[1724265193115,0.58945059,60652.0,60651.0,2.61399998]
[1724265193317,0.61530232,60652.0,60651.0,2.61399998]
[1724265193523,0.61630232,60652.0,60651.0,2.64199998]
[1724265193731,0.61630232,60652.0,60651.0,2.97275498]
[1724265193936,0.61530232,60652.0,60651.0,2.94475498]
[1724265194158,0.61630232,60652.0,60651.0,2.95875498]
[1724265194365,0.61630232,60652.0,60651.0,2.97475498]
[1724265194583,0.61630232,60652.0,60651.0,3.30650998]
[1724265195017,0.00823,60676.0,60659.0,1.84341]
[1724265195223,0.00823,60676.0,60668.0,0.848094]
[1724265195224,0.50052154,60676.0,60668.0,0.848094]
[1724265195438,0.50052154,60676.0,60668.0,2.5277962]
[1724265195649,0.00823,60676.0,60668.0,2.9574592]
[1724265195876,0.00823,60676.0,60668.0,2.9584592]
[1724265196080,0.00823,60676.0,60668.0,2.9574592]
[1724265196797,0.00823,60676.0,60668.0,2.6417962]
[1724265197223,0.77298209,60669.0,60668.0,2.6417962]
[1724265197433,0.22088209,60669.0,60668.0,2.6427962]
[1724265197648,0.22088209,60669.0,60668.0,2.6567962]
[1724265197857,0.22188209,60669.0,60668.0,2.9884592]
[1724265198059,0.22088209,60669.0,60668.0,2.9744592]
[1724265198479,0.22088209,60669.0,60668.0,2.9724592]
[1724265198687,0.22088209,60669.0,60668.0,2.6277962]
[1724265199097,0.22088209,60669.0,60668.0,2.6417962]
[1724265199525,0.22188209,60669.0,60668.0,2.6557962]
[1724265199952,0.22188209,60669.0,60668.0,2.5557962]
[1724265200159,0.22188209,60669.0,60668.0,2.6557962]
[1724265200806,0.22188209,60669.0,60668.0,2.6567962]
[1724265201434,0.22188209,60669.0,60668.0,2.9884592]
[1724265201642,0.22188209,60669.0,60668.0,2.9904592]
[1724265202270,0.02584255,60672.0,60669.0,0.003]
[1724265202475,0.02584255,60672.0,60669.0,2.10793702]
[1724265202886,0.02584255,60672.0,60669.0,2.10493702]
[1724265203319,0.02584255,60672.0,60669.0,2.08715898]
[1724265203528,0.0096308,60670.0,60669.0,2.11515898]
[1724265204368,0.0096308,60670.0,60669.0,1.34580198]
[1724265204992,0.0096308,60670.0,60669.0,1.01614498]
[1724265205858,0.0096308,60670.0,60669.0,1.33180198]
[1724265206038,0.0096308,60670.0,60669.0,1.33780198]
[1724265206266,0.0096308,60670.0,60669.0,1.32380198]
[1724265206267,0.0086308,60670.0,60669.0,1.32380198]
[1724265206491,0.0096308,60670.0,60669.0,2.36411598]
[1724265206698,0.0096308,60670.0,60669.0,2.19805015]
[1724265206937,0.01960722,60672.0,60671.0,1.153761]
[1724265207156,0.01960722,60672.0,60671.0,1.76520115]
[1724265207365,0.00823,60676.0,60672.0,0.824102]
[1724265207573,0.00823,60676.0,60672.0,1.76517815]
[1724265208021,0.00823,60676.0,60672.0,1.43553715]
[1724265208230,0.00823,60676.0,60672.0,1.31774598]
[1724265208659,0.00823,60676.0,60672.0,1.33553473]
[1724265209324,0.20013,60676.0,60672.0,1.34953473]
[1724265209538,0.00823,60676.0,60672.0,1.34953473]
[1724265209960,0.012986,60673.0,60672.0,1.36353473]
[1724265210600,0.039831,60673.0,60672.0,1.70717573]
[1724265211728,0.039831,60673.0,60672.0,2.03897573]
[1724265212353,0.038831,60673.0,60672.0,2.03897573]
[1724265213996,0.012986,60673.0,60672.0,2.03897573]
[1724265214203,0.012986,60673.0,60672.0,2.13897573]
[1724265214406,0.012986,60673.0,60672.0,2.0389675]
[1724265216418,0.012986,60673.0,60672.0,2.3696085]
[1724265216631,0.012986,60673.0,60672.0,2.4716085]
[1724265216776,0.012986,60673.0,60672.0,2.49223435]
[1724265216977,0.00823,60676.0,60675.0,1.812937]
[1724265217184,0.00823,60676.0,60675.0,2.36894635]
[1724265217387,0.00823,60676.0,60675.0,2.4483205]
[1724265217589,0.00823,60676.0,60675.0,2.66884502]
[1724265217823,0.00823,60676.0,60675.0,3.34427002]
[1724265217971,0.80306278,60677.0,60675.0,3.37726657]
[1724265218177,0.80306278,60677.0,60676.0,1.85368957]
[1724265218423,0.82890271,60677.0,60676.0,2.18330857]
[1724265218679,0.82890271,60677.0,60676.0,2.15031202]
[1724265218889,0.82890271,60677.0,60676.0,1.68569302]
[1724265219055,0.82890271,60677.0,60676.0,1.6650685]
[1724265220503,0.82890271,60677.0,60676.0,1.66128798]
[1724265220700,0.82890271,60677.0,60676.0,1.67905173]
[1724265220925,0.82890271,60677.0,60676.0,1.69205173]
[1724265221076,0.82890271,60677.0,60676.0,1.71267628]
[1724265221300,0.82890271,60677.0,60676.0,1.69205173]
[1724265221497,0.82890271,60677.0,60676.0,1.71267628]
[1724265222519,0.82890271,60677.0,60676.0,2.14229528]
[1724265222736,8e-05,60684.0,60683.0,1.483114]
[1724265222944,0.18528,60684.0,60683.0,1.35592428]
[1724265223231,0.18528,60684.0,60683.0,1.33529973]
[1724265223379,0.18528,60684.0,60683.0,1.17129675]
[1724265223990,0.18528,60684.0,60683.0,1.18229675]
[1724265224192,0.18528,60684.0,60683.0,1.19529675]
[1724265224394,0.52588,60684.0,60683.0,0.04176375]
[1724265224598,0.52588,60684.0,60683.0,0.518371]
[1724265225139,0.52588,60684.0,60683.0,0.86572642]
[1724265225339,0.52588,60684.0,60683.0,0.85472642]
[1724265226213,0.52588,60684.0,60683.0,0.84172642]
[1724265226428,0.55172418,60684.0,60683.0,0.84172642]
[1724265226637,0.55172418,60684.0,60683.0,0.841725]
[1724265226900,0.55172418,60684.0,60683.0,0.494371]
[1724265227104,0.55172418,60684.0,60683.0,0.497371]
[1724265227308,0.55172418,60684.0,60683.0,0.826952]
[1724265227956,0.55172418,60684.0,60683.0,1.31753598]
[1724265228192,0.55172418,60684.0,60683.0,1.33530246]
[1724265229242,0.21112418,60684.0,60683.0,1.34130246]
[1724265229465,0.02592418,60684.0,60683.0,1.34130246]
[1724265229669,0.02592418,60684.0,60683.0,1.67088346]
[1724265229873,0.02592418,60684.0,60683.0,1.67488346]
[1724265230098,0.02592418,60684.0,60683.0,1.67088346]
[1724265230505,0.02592418,60684.0,60683.0,1.34830246]
[1724265230914,0.02592418,60684.0,60683.0,1.68888346]
[1724265231132,0.02592418,60684.0,60683.0,1.19529948]
[1724265231344,0.36702418,60684.0,60683.0,1.19529948]
[1724265231552,0.36784818,60684.0,60683.0,1.177533]
[1724265232393,0.02674818,60684.0,60683.0,1.34153598]
[1724265232622,0.02674818,60684.0,60683.0,1.35929408]
[1724265232874,0.02674818,60684.0,60683.0,1.68887376]
[1724265233120,0.02674818,60684.0,60683.0,1.35929276]
[1724265233330,0.02674818,60684.0,60683.0,1.68887376]
[1724265233546,0.02674818,60684.0,60683.0,1.35929276]
[1724265233973,0.37124818,60684.0,60683.0,1.19528978]
[1724265234380,0.02674818,60684.0,60683.0,1.68887376]
[1724265235892,0.02674818,60684.0,60683.0,1.67111698]
[1724265236099,0.02674818,60684.0,60683.0,1.68887118]
[1724265237700,0.000904,60684.0,60683.0,1.68887118]
[1724265239237,0.349704,60684.0,60683.0,1.19528265]
[1724265239492,0.537204,60684.0,60683.0,1.19528265]
[1724265240294,0.537204,60684.0,60683.0,0.86570165]
[1724265240518,0.537204,60684.0,60683.0,0.024]
[1724265240519,1.47857098,60684.0,60683.0,0.024]
[1724265240802,1.17199498,60684.0,60683.0,0.024]
[1724265241301,0.5677,60683.0,60679.0,0.0009064]
[1724265241577,0.5677,60683.0,60681.0,0.164796]
[1724265241578,0.3708,60682.0,60681.0,0.164796]
[1724265241798,0.3708,60682.0,60681.0,0.494388]
[1724265242125,0.3708,60682.0,60681.0,0.82398]
[1724265242288,0.3708,60682.0,60681.0,1.17132427]
[1724265242525,0.3708,60682.0,60681.0,1.153572]
[1724265243266,0.003,60682.0,60681.0,1.153572]
[1724265243533,0.003,60682.0,60681.0,1.31757498]
[1724265243734,0.003,60682.0,60681.0,1.64716698]
[1724265244762,0.003,60682.0,60681.0,1.97675898]
[1724265244975,0.000904,60684.0,60683.0,1.483114]
[1724265245181,0.000904,60684.0,60683.0,1.64711698]
[1724265246722,0.000904,60684.0,60683.0,1.483114]
[1724265247357,0.000904,60684.0,60683.0,1.66111698]
[1724265247571,0.02674473,60684.0,60683.0,1.64711698]
[1724265247995,0.02674473,60684.0,60683.0,1.65811698]
[1724265248195,0.40094473,60684.0,60683.0,1.494114]
[1724265248600,0.40094473,60684.0,60683.0,1.504114]
[1724265248824,0.02674473,60684.0,60683.0,1.504114]
[1724265249028,0.02674473,60684.0,60683.0,1.494114]
[1724265249235,0.02674473,60684.0,60683.0,1.483114]
[1724265249437,0.02674473,60684.0,60683.0,1.504114]
[1724265250268,0.02674473,60684.0,60683.0,1.492114]
[1724265250689,0.02674473,60684.0,60683.0,1.66811698]
[1724265251312,0.02674473,60684.0,60683.0,1.65911698]
[1724265251565,0.02674473,60684.0,60683.0,1.495114]
[1724265251807,0.02674473,60684.0,60683.0,1.505114]
[1724265252233,0.02674473,60684.0,60683.0,1.495114]
[1724265252445,0.02674473,60684.0,60683.0,1.66911698]
[1724265255668,0.02674473,60684.0,60683.0,2.03081698]
[1724265255853,0.02674473,60684.0,60683.0,2.36039798]
[1724265256500,0.02674473,60684.0,60683.0,2.03081698]
[1724265256705,0.02674473,60684.0,60683.0,1.66911698]
[1724265259291,0.56854473,60684.0,60683.0,0.022]
[1724265260161,0.56854473,60684.0,60683.0,0.012]
[1724265260370,0.56854473,60684.0,60679.0,0.0009064]
[1724265260371,0.561,60683.0,60679.0,0.0009064]
[1724265260579,0.3674,60682.0,60679.0,0.0009064]
[1724265260785,0.3674,60682.0,60681.0,0.494388]
[1724265261234,0.3674,60682.0,60681.0,1.153572]
[1724265263120,0.02674473,60684.0,60683.0,0.823952]
[1724265263325,0.91976367,60685.0,60683.0,0.823952]
[1724265263326,0.85952167,60685.0,60684.0,0.494364]
[1724265263544,0.84736349,60685.0,60684.0,1.64709498]
[1724265263745,0.87320355,60685.0,60684.0,1.64709498]
[1724265264785,0.87320355,60685.0,60684.0,1.65709498]
[1724265266071,0.87320355,60685.0,60684.0,1.65809498]
[1724265266516,0.87320355,60685.0,60684.0,1.66709498]
[1724265266721,1.23970355,60685.0,60684.0,1.173516]
[1724265266934,1.43900355,60685.0,60684.0,1.173516]
[1724265267146,0.87320355,60685.0,60684.0,1.173516]
[1724265267354,0.87402755,60685.0,60684.0,1.173516]
[1724265267787,0.87402755,60685.0,60684.0,0.67836698]
[1724265267994,0.87402755,60685.0,60684.0,1.35784298]
[1724265269261,0.87402755,60685.0,60684.0,1.68741898]
[1724265269639,0.87402755,60685.0,60684.0,1.00794298]
[1724265270469,0.87402755,60685.0,60684.0,0.184788]
[1724265270679,1.24032755,60685.0,60684.0,0.184788]
[1724265270897,1.42881387,60685.0,60684.0,0.02]
[1724265271736,1.42881387,60685.0,60684.0,0.009]
[1724265272149,1.43181387,60685.0,60684.0,0.009]
[1724265272390,1.42881387,60685.0,60679.0,0.0009064]
[1724265272886,1.43681387,60685.0,60679.0,0.0009064]
[1724265273096,0.00286849,60684.0,60679.0,0.0009064]
[1724265273312,0.3529,60683.0,60679.0,0.0009064]
[1724265273723,0.00286849,60684.0,60679.0,0.0009064]
[1724265274141,0.00286849,60684.0,60681.0,0.164795]
[1724265274378,0.00286849,60684.0,60679.0,0.0009064]
[1724265274627,0.00786849,60684.0,60679.0,0.0009064]
[1724265274839,0.30668424,60683.0,60679.0,0.0009064]
[1724265275047,0.691995,60680.0,60679.0,0.0009064]
[1724265275453,1.022592,60680.0,60679.0,0.0009064]
[1724265275665,1.18959498,60680.0,60679.0,0.0009064]
[1724265275874,1.54319198,60680.0,60679.0,0.0009064]
[1724265276038,0.829087,60673.0,60658.0,0.49229154]
[1724265276245,1.46108998,60673.0,60658.0,0.49229154]
[1724265276425,0.186,60661.0,60649.0,0.329765]
[1724265276605,0.186,60661.0,60652.0,0.329746]
[1724265276807,0.352,60660.0,60653.0,0.164871]
[1724265277052,0.352,60660.0,60646.0,0.32978]
[1724265277385,0.329741,60654.0,60643.0,0.164898]
[1724265277591,0.3679,60651.0,60637.0,0.0009053]
[1724265277940,0.02585994,60648.0,60642.0,0.164902]
[1724265278126,0.02585994,60648.0,60642.0,0.50640298]
[1724265278327,0.02585994,60648.0,60647.0,0.824442]
[1724265278536,0.02585994,60648.0,60647.0,0.494665]
[1724265279180,0.02585994,60648.0,60647.0,0.65866798]
[1724265279574,0.02685994,60648.0,60647.0,0.99144498]
[1724265279756,0.02585994,60648.0,60647.0,0.98844498]
[1724265280231,0.02585994,60648.0,60647.0,0.99344498]
[1724265280415,0.02585994,60648.0,60647.0,1.32322198]
[1724265280885,0.02585994,60648.0,60647.0,1.31822198]
[1724265281064,0.02585994,60648.0,60647.0,0.98844498]
[1724265281468,0.02685994,60648.0,60647.0,0.99144498]
[1724265281677,0.02585994,60648.0,60647.0,0.98844498]
[1724265281820,0.02585994,60648.0,60647.0,0.99144498]
[1724265282008,0.02685994,60648.0,60647.0,0.99644498]
[1724265283195,0.02585994,60648.0,60647.0,0.164888]
[1724265283341,0.38995994,60648.0,60647.0,0.005]
[1724265283540,0.74384494,60648.0,60647.0,0.005]
[1724265283863,0.52899,60647.0,60638.0,0.329825]
[1724265284088,0.164891,60646.0,60638.0,0.329824]
[1724265284280,0.3641,60647.0,60637.0,0.0009053]
[1724265284439,0.3572,60645.0,60637.0,0.0009053]
[1724265284636,0.522095,60645.0,60638.0,0.164911]
[1724265285036,0.522095,60645.0,60639.0,0.164909]
[1724265285704,0.5505,60641.0,60637.0,0.0009053]
[1724265285909,0.44600298,60644.0,60637.0,0.0009053]
[1724265285910,0.715413,60638.0,60637.0,0.0009053]
[1724265286077,1.49124198,60638.0,60637.0,0.0009053]
[1724265286387,1.85193405,60638.0,60637.0,0.0009053]
[1724265286728,2.35668425,60638.0,60637.0,0.0009053]
[1724265286933,2.35668425,60638.0,60618.0,0.009064]
[1724265286934,0.5437,60625.0,60618.0,0.009064]
[1724265287141,0.3519,60622.0,60618.0,0.009064]
[1724265287375,0.3519,60622.0,60621.0,0.164959]
[1724265287572,0.1918,60623.0,60618.0,0.009064]
[1724265287573,0.1918,60623.0,60622.0,0.494869]
[1724265287775,0.1918,60623.0,60622.0,0.824782]
[1724265287991,0.02587021,60624.0,60623.0,0.49486]
[1724265288199,0.02587021,60624.0,60623.0,1.36855708]
[1724265288403,0.02587021,60624.0,60623.0,2.05706408]
[1724265289215,0.02687021,60624.0,60623.0,2.06206408]
[1724265289421,0.02587021,60624.0,60623.0,2.34186408]
[1724265289828,0.02687021,60624.0,60623.0,2.34786408]
[1724265290034,0.02587021,60624.0,60623.0,2.34277048]
[1724265290236,0.02587021,60624.0,60623.0,2.29289038]
[1724265291452,0.02687021,60624.0,60623.0,2.63179738]
[1724265291895,0.000824,60637.0,60636.0,1.154429]
[1724265292098,0.000824,60637.0,60636.0,1.31843198]
[1724265292310,0.000824,60637.0,60636.0,2.00856898]
[1724265292887,0.000824,60637.0,60636.0,2.53050598]
[1724265293275,0.000824,60637.0,60636.0,2.63050598]
[1724265293896,0.000824,60637.0,60636.0,2.63850598]
[1724265293897,0.001824,60637.0,60636.0,2.63850598]
[1724265294583,0.002824,60637.0,60636.0,2.45740598]
[1724265294826,0.002824,60637.0,60636.0,2.80030598]
[1724265294827,0.001824,60637.0,60636.0,2.80030598]
[1724265295009,0.002824,60637.0,60636.0,2.81030598]
[1724265295507,0.001824,60637.0,60636.0,2.80230598]
[1724265295713,0.002824,60637.0,60636.0,2.81330598]
[1724265295914,0.001824,60637.0,60636.0,2.80030598]
[1724265296118,0.001824,60637.0,60636.0,2.44840598]
[1724265296555,0.499,60650.0,60645.0,0.03]
[1724265296676,0.499,60650.0,60649.0,0.494649]
[1724265296887,0.499,60650.0,60649.0,1.74794998]
[1724265297093,0.499,60650.0,60649.0,2.24541598]
[1724265297951,0.499,60650.0,60649.0,2.24641598]
[1724265298155,0.499,60650.0,60649.0,2.58721598]
[1724265298364,0.5,60650.0,60649.0,2.59721598]
[1724265298584,0.1959,60673.0,60672.0,1.153743]
[1724265298796,1.39817381,60685.0,60676.0,0.164809]
[1724265299008,1.39817381,60685.0,60684.0,0.82394]
[1724265299265,1.39817381,60685.0,60684.0,1.153516]
[1724265299689,0.84407381,60685.0,60684.0,1.64709498]
[1724265300320,0.84407381,60685.0,60684.0,1.31851898]
[1724265300321,0.84907381,60685.0,60684.0,1.31851898]
[1724265300744,0.84907381,60685.0,60684.0,1.31751898]
[1724265301164,1.19297381,60685.0,60684.0,0.82394]
[1724265301373,1.18797381,60685.0,60684.0,0.82594]
[1724265301588,0.84167381,60685.0,60684.0,0.82594]
[1724265301797,0.84167381,60685.0,60684.0,1.31951898]
[1724265302205,0.84167381,60685.0,60684.0,1.32651898]
[1724265302447,0.84167381,60685.0,60684.0,1.31751898]
[1724265303095,0.84267381,60685.0,60684.0,1.65509498]
[1724265303295,0.84147381,60685.0,60684.0,1.65509498]
[1724265303716,0.84047381,60685.0,60684.0,1.64709498]
[1724265303915,0.84147381,60685.0,60684.0,1.65709498]
[1724265304324,0.84147381,60685.0,60684.0,1.32851898]
[1724265304760,0.84147381,60685.0,60684.0,2.18789498]
[1724265304972,0.84147381,60685.0,60684.0,2.19989498]
[1724265305380,0.84047381,60685.0,60684.0,2.18989498]
[1724265305589,0.84147381,60685.0,60684.0,2.01409498]
[1724265305792,0.84147381,60685.0,60684.0,1.68451898]
[1724265306003,1.02447381,60685.0,60684.0,0.516364]
[1724265306225,1.38897381,60685.0,60684.0,0.022]
[1724265306433,1.38997381,60685.0,60684.0,0.022]
[1724265306636,1.38897381,60685.0,60684.0,0.022]
[1724265306843,1.55375881,60685.0,60684.0,0.022]
[1724265307069,1.38797381,60685.0,60684.0,0.012]
[1724265307272,2.04630759,60685.0,60684.0,0.012]
[1724265307485,1.55275881,60685.0,60684.0,0.012]
[1724265307681,1.38797381,60685.0,60684.0,0.012]
[1724265307888,1.38797381,60685.0,60684.0,0.164788]
[1724265308095,1.20497381,60685.0,60684.0,0.164788]
[1724265308300,0.84047381,60685.0,60684.0,1.31751898]
[1724265308504,0.84047381,60685.0,60684.0,1.31851898]
[1724265308707,0.84047381,60685.0,60684.0,1.64809498]
[1724265308906,0.85447381,60685.0,60684.0,1.64809498]
[1724265309118,0.85447381,60685.0,60684.0,1.64909498]
[1724265309327,0.84047381,60685.0,60684.0,1.64809498]
[1724265309571,0.84047381,60685.0,60684.0,1.64709498]
[1724265309771,0.84047381,60685.0,60684.0,1.64809498]
[1724265310226,0.84047381,60685.0,60684.0,1.64709498]
[1724265311291,0.84047381,60685.0,60684.0,2.53667098]
[1724265311698,0.84047381,60685.0,60684.0,2.53567098]
[1724265311899,0.84047381,60685.0,60684.0,2.01959498]
[1724265312354,0.84047381,60685.0,60684.0,2.01659498]
[1724265312557,0.84047381,60685.0,60684.0,1.65909498]
[1724265312699,0.84147381,60685.0,60684.0,1.66809498]
[1724265312895,0.84147381,60685.0,60684.0,1.65409498]
[1724265313114,0.84047381,60685.0,60684.0,1.64509498]
[1724265313310,0.84047381,60685.0,60684.0,1.65409498]
[1724265313520,0.84147381,60685.0,60684.0,1.65409498]
[1724265314240,0.84147381,60685.0,60684.0,1.65401123]
[1724265314420,0.84147381,60685.0,60684.0,1.66701123]
[1724265314628,0.84147381,60685.0,60684.0,1.65401123]
[1724265314828,0.84047381,60685.0,60684.0,1.64501123]
[1724265315032,0.84147381,60685.0,60684.0,1.66801123]
[1724265315405,0.84147381,60685.0,60684.0,1.65401123]
[1724265315615,0.84047381,60685.0,60684.0,1.64501123]
[1724265315829,0.84047381,60685.0,60684.0,1.65801123]
[1724265316037,0.84047381,60685.0,60684.0,1.65401123]
[1724265316038,0.84147381,60685.0,60684.0,1.65401123]
[1724265316464,0.84147381,60685.0,60684.0,1.66801123]
[1724265317661,0.84147381,60685.0,60684.0,2.23391123]
[1724265318547,0.84147381,60685.0,60684.0,2.33391123]
[1724265318773,0.2575954,60685.0,60684.0,2.9800799]
[1724265318989,1e-08,60685.0,60684.0,3.1143859]
[1724265319199,1e-08,60685.0,60684.0,3.03967883]
[1724265319410,0.00823,60686.0,60685.0,1.486065]
[1724265319624,0.91805007,60694.0,60693.0,0.49929]
[1724265319832,0.91805007,60694.0,60693.0,2.55617398]
[1724265320036,3.1e-07,60699.0,60698.0,1.55105]
[1724265320251,3.1e-07,60699.0,60698.0,2.33245298]
[1724265320458,3.1e-07,60699.0,60698.0,2.99145298]
[1724265320651,3.1e-07,60699.0,60698.0,2.93345298]
[1724265320853,1.06431805,60719.0,60701.0,0.530541]
[1724265320854,0.70092331,60702.0,60701.0,0.530541]
[1724265321056,0.56913131,60702.0,60701.0,1.83140998]
[1724265321283,0.56913131,60702.0,60701.0,2.49037598]
[1724265321483,0.56913131,60702.0,60701.0,2.81985898]
[1724265321708,0.40439131,60702.0,60701.0,3.14934198]
[1724265321943,0.40439131,60702.0,60701.0,3.31424198]
[1724265322192,0.40439131,60702.0,60701.0,3.30524198]
[1724265322389,0.40439131,60702.0,60701.0,3.30324198]
[1724265322620,0.40439131,60702.0,60701.0,3.28924198]
[1724265322790,0.40439131,60702.0,60701.0,2.97175898]
[1724265323033,0.40439131,60702.0,60701.0,2.98775898]
[1724265323167,0.40439131,60702.0,60701.0,2.97375898]
[1724265323582,0.40439131,60702.0,60701.0,4.47375898]
[1724265323784,0.40439131,60702.0,60701.0,4.47575898]
[1724265324186,1.06431805,60719.0,60710.0,2.208792]
[1724265324389,1.06431805,60719.0,60710.0,3.04384146]
[1724265324671,1.06431805,60719.0,60712.0,1.35546]
[1724265324672,9.1e-07,60713.0,60712.0,1.35546]
[1724265324875,0.99844096,60719.0,60718.0,0.890986]
[1724265325130,0.99844096,60719.0,60718.0,2.68406198]
[1724265325327,0.01144992,60727.0,60718.0,2.68406198]
[1724265325328,0.01144992,60727.0,60725.0,1.902535]
[1724265325534,0.01144992,60727.0,60725.0,2.51889098]
[1724265325791,0.02581752,60729.0,60727.0,1.517597]
[1724265325792,0.9596873,60728.0,60727.0,1.517597]
[1724265325991,0.9596873,60728.0,60727.0,2.46528398]
[1724265326207,0.9596873,60728.0,60727.0,2.84512357]
[1724265326840,0.9596873,60728.0,60727.0,2.10794198]
[1724265327056,0.9596873,60728.0,60727.0,0.98735798]
[1724265327705,0.9596873,60728.0,60727.0,1.31669998]
[1724265328123,0.9596873,60728.0,60727.0,1.33069998]
[1724265328360,0.9606873,60728.0,60727.0,1.33069998]
[1724265328560,0.9606873,60728.0,60727.0,1.34465126]
[1724265328767,0.9606873,60728.0,60727.0,1.33065126]
[1724265328768,0.9596873,60728.0,60727.0,1.33065126]
[1724265328972,0.9596873,60728.0,60727.0,1.31665126]
[1724265329182,0.9596873,60728.0,60727.0,1.32865126]
[1724265329666,0.9606873,60728.0,60727.0,1.32865126]
[1724265329862,1.5230873,60728.0,60727.0,0.67001598]
[1724265330037,1.5230873,60728.0,60727.0,0.34067398]
[1724265330240,1.5230873,60728.0,60727.0,0.012]
[1724265330599,1.5230873,60728.0,60727.0,0.176671]
[1724265330805,1.5230873,60728.0,60727.0,0.024]
[1724265331004,1.5220873,60728.0,60727.0,0.012]
[1724265331237,1.5220873,60728.0,60727.0,0.84668698]
[1724265331238,0.9606873,60728.0,60727.0,0.84668698]
[1724265331411,0.9606873,60728.0,60727.0,1.34069998]
[1724265331608,1.1422873,60728.0,60727.0,0.024]
[1724265331812,1.1422873,60728.0,60727.0,0.188671]
[1724265332078,1.1422873,60728.0,60727.0,0.518013]
[1724265332238,1.1422873,60728.0,60727.0,0.188671]
[1724265332443,1.5169873,60728.0,60727.0,0.024]
[1724265333839,1.5159873,60728.0,60724.0,0.164677]
[1724265334250,1.5209873,60728.0,60722.0,0.329364]
[1724265334444,1.5209873,60728.0,60726.0,0.164673]
[1724265334646,1.5159873,60728.0,60727.0,0.164671]
[1724265335069,1.5209873,60728.0,60727.0,0.164671]
[1724265335273,1.5209873,60728.0,60725.0,0.164675]
[1724265335446,1.5159873,60728.0,60726.0,0.164673]
[1724265335651,0.164656,60733.0,60726.0,0.164673]
[1724265335652,2.3715,60820.0,60726.0,0.164673]
[1724265335960,0.005,60728.0,60727.0,2.57644654]
[1724265336169,0.16400298,60753.0,60727.0,2.57644654]
[1724265336170,0.164607,60751.0,60738.0,0.329283]
[1724265336390,0.164607,60751.0,60736.0,0.001]
[1724265336391,0.00286903,60750.0,60740.0,0.001]
[1724265336589,0.00286903,60750.0,60743.0,0.164627]
[1724265336788,0.00286903,60750.0,60744.0,0.164623]
[1724265336992,0.00286903,60750.0,60749.0,0.165611]
[1724265337201,0.164575,60763.0,60751.0,0.164605]
[1724265337565,0.72905,60781.0,60751.0,0.329212]
[1724265337566,0.00286875,60762.0,60751.0,0.329212]
[1724265337719,0.00286875,60762.0,60756.0,0.164591]
[1724265337924,0.00286875,60762.0,60753.0,0.329201]
[1724265338126,0.00286875,60762.0,60750.0,0.329216]
[1724265338331,0.00286875,60762.0,60753.0,0.16257928]
[1724265338332,0.00266875,60762.0,60753.0,0.16257928]
[1724265338531,0.00266875,60762.0,60756.0,0.164591]
[1724265338732,0.5608,60761.0,60751.0,0.0022]
[1724265338934,0.5608,60761.0,60753.0,0.004]
[1724265339193,0.5608,60761.0,60756.0,0.329184]
[1724265339611,0.5608,60761.0,60760.0,0.493744]
[1724265339819,0.5608,60761.0,60760.0,0.822907]
[1724265339952,0.1828,60761.0,60760.0,0.495744]
[1724265340168,0.1828,60761.0,60760.0,0.497744]
[1724265340375,0.1828,60761.0,60760.0,0.826907]
[1724265340571,0.067863,60761.0,60760.0,0.497744]
[1724265341154,0.067863,60761.0,60760.0,0.826907]
[1724265341387,0.067863,60761.0,60760.0,0.497744]
[1724265341612,0.068863,60761.0,60760.0,0.497744]
[1724265342009,0.068863,60761.0,60760.0,0.495744]
[1724265342243,0.001,60761.0,60760.0,0.495744]
[1724265342419,0.3914,60761.0,60760.0,0.495744]
[1724265342621,0.3904,60761.0,60760.0,0.165581]
[1724265342856,0.00266875,60762.0,60760.0,0.165581]
[1724265342857,0.00266875,60762.0,60761.0,0.494737]
[1724265343515,0.00266875,60762.0,60761.0,0.164579]
[1724265344118,0.00266875,60762.0,60761.0,0.823895]
[1724265344327,0.00266875,60762.0,60761.0,0.494737]
[1724265344328,0.00240675,60762.0,60761.0,0.494737]
[1724265344541,0.00340675,60762.0,60761.0,0.496737]
[1724265345042,0.02821808,60762.0,60761.0,0.494737]
[1724265345889,0.02821808,60762.0,60759.0,0.329168]
[1724265345890,0.02821808,60762.0,60760.0,0.164581]
[1724265346072,0.02821808,60762.0,60757.0,1.2548]
[1724265346073,0.3903,60761.0,60757.0,1.2548]
[1724265346294,0.164586,60759.0,60757.0,1.2548]
[1724265346504,0.164589,60758.0,60751.0,0.0002]
[1724265346715,0.3903,60756.0,60751.0,0.0002]
[1724265346890,0.164603,60752.0,60751.0,0.0002]
[1724265347090,0.5708,60752.0,60751.0,0.0002]
[1724265347303,1.06461,60752.0,60751.0,0.0002]
[1724265347656,1.393817,60752.0,60751.0,0.0002]
[1724265348110,1.22858878,60752.0,60751.0,0.0002]
[1724265348309,0.49320998,60752.0,60733.0,0.330307]
[1724265348599,0.49320998,60752.0,60744.0,0.49229154]
[1724265348600,0.5786,60747.0,60744.0,0.49229154]
[1724265348791,0.5786,60747.0,60746.0,0.49229154]
[1724265348792,0.00866622,60747.0,60746.0,0.49229154]
[1724265349003,0.164437,60814.0,60802.0,0.3872]
[1724265349200,0.41206097,60819.0,60818.0,0.494275]
[1724265349201,0.01723097,60819.0,60818.0,0.494275]
[1724265349368,0.184,60821.0,60805.0,0.328915]
[1724265349571,0.184,60821.0,60790.0,0.3872]
[1724265349572,0.1944,60813.0,60783.0,0.49229154]
[1724265349925,0.3839,60808.0,60799.0,0.49229154]
[1724265350126,0.5665,60807.0,60784.0,0.16400298]
[1724265350249,0.5665,60807.0,60785.0,0.16400298]
[1724265350250,0.5665,60804.0,60785.0,0.16400298]
[1724265350455,0.5665,60804.0,60786.0,0.16400298]
[1724265350656,0.5665,60804.0,60798.0,0.328954]
[1724265350883,0.5665,60804.0,60801.0,0.164469]
[1724265351083,0.5665,60804.0,60786.0,0.16400298]
[1724265351084,0.5665,60804.0,60789.0,0.329004]
[1724265351305,0.5665,60804.0,60790.0,0.001]
[1724265351306,0.05665,60803.0,60790.0,0.001]
[1724265351539,0.00018978,60790.0,60787.0,0.001]
[1724265351742,0.1859,60788.0,60785.0,0.001]
[1724265352064,0.1859,60788.0,60783.0,0.164519]
[1724265352266,0.1859,60788.0,60775.0,0.329079]
[1724265352267,0.1859,60788.0,60780.0,0.16400298]
[1724265352465,0.1859,60788.0,60769.0,0.329114]
[1724265352711,0.1859,60788.0,60777.0,0.49229154]
[1724265352912,0.1859,60788.0,60776.0,0.164537]
[1724265353133,0.1859,60788.0,60777.0,0.164535]